Cogmind - Beta 12 X1 @@@ ROGUE MODE // 2022.07.01 @ 15:08:03 Player: btmk16 Result: Self-destructed Performance ------------- Evolutions (3) 1500 Regions Visited (12) 2400 Robots Destroyed (70) 350 Value Destroyed (2412) 2412 Prototype IDs (35) 700 Alien Tech Used (0) 0 Bonus (1435) 1435 TOTAL SCORE: 8797 Bonus ------- High Alert Combat Kills 135 Entered Garrisons 200 Used RIF Installer 500 Aligned with FarCom 300 Met Data Miner 300 Cogmind --------- Core Integrity 406/700 Matter 258/300 Energy 100/100 System Corruption 11% Temperature Cool (0) Movement Core (450) Ox8 Location -6/Proximity Caves Parts ------- > --- POWER (1) -------- (None) > --- PROPULSION (4) --- (None) > --- UTILITY (5) ------ Improved Heat Sink Large Storage Unit Hacking Suite > --- WEAPON (3) ------- Katana Makeshift Spear > --- INVENTORY (15) --- Weight Redist. System Melee Analysis Suite Improved Utility Shielding Reflective Plating Relay Coupler [Grunt] (29) Medium Laser Medium Laser Coil Gun Advanced Assault Cannon Magnetic Acceleration Cannon Mining Laser Peak State ------------ > --- POWER ------------ Improved Ion Engine > --- PROPULSION ------- Flying Fortress v7 > --- UTILITY ---------- Improved Heat Sink Improved Heat Sink Large Storage Unit Experimental Sensor Array Hacking Suite > --- WEAPON ----------- Guided Plasma Cannon AWS/Gauss > --- INVENTORY -------- Improved Ion Engine Weight Redist. System Melee Analysis Suite Improved Utility Shielding Reflective Plating Relay Coupler [Grunt] Medium Laser Medium Laser Advanced Assault Cannon Advanced Assault Cannon Shock Bomb Launcher Shock Bomb Launcher Mining Laser Katana [Rating: 80] Favorites ----------- Power Improved Ion Engine Engine Improved Ion Engine Propulsion Flying Fortress v7 Treads Light Treads Leg Aluminum Leg Wheel Wheel Flight Unit Flying Fortress v7 Utility Improved Heat Sink Device Improved Heat Sink Storage Large Storage Unit Processor Transport Network Coupler Hackware Hacking Suite Protection Reflective Plating Weapon AWS/Gauss Energy Gun Medium Laser Energy Cannon Guided Plasma Cannon Ballistic Gun AWS/Gauss Ballistic Cannon Magnetic Acceleration Cannon Launcher Shock Bomb Launcher Slashing Weapon Katana Piercing Weapon Makeshift Spear Build | -11 -10 -10 -10 -9 -8 -8 -8 -7 -7 -7 -7 -6 ------- Run | Scr Mat Min Exi Min Mat Sto Gar Fac Low Low Dat Pro Slots Evolved 6 | . . . . . 4 . . 2 . . . . Power . | . . . . . . . . . . . . . Propulsion 2 | . . . . . 2 . . . . . . . Utility 3 | . . . . . 1 . . 2 . . . . Weapon 1 | . . . . . 1 . . . . . . . Parts Attached 37 | . 8 4 4 2 5 . 2 2 . 6 1 3 Power 6 | . 2 . 1 2 . . . . . . . 1 Engine 6 | . 2 . 1 2 . . . . . . . 1 Core . | . . . . . . . . . . . . . Reactor . | . . . . . . . . . . . . . Propulsion 8 | . 4 2 . . 1 . . . . 1 . . Treads 2 | . 2 . . . . . . . . . . . Leg 1 | . 1 . . . . . . . . . . . Wheel 2 | . . 2 . . . . . . . . . . Hover . | . . . . . . . . . . . . . Flight 3 | . 1 . . . 1 . . . . 1 . . Utility 12 | . 2 . 2 . 3 . 1 2 . 2 . . Device 6 | . 1 . 1 . . . 1 1 . 2 . . Storage 3 | . 1 . 1 . 1 . . . . . . . Processor 1 | . . . . . 1 . . . . . . . Hackware 1 | . . . . . . . . 1 . . . . Protection 1 | . . . . . 1 . . . . . . . Artifact . | . . . . . . . . . . . . . Weapon 11 | . . 2 1 . 1 . 1 . . 3 1 2 Energy Gun 2 | . . 2 . . . . . . . . . . Energy Cannon 1 | . . . . . . . 1 . . . . . Ballistic Gun 1 | . . . 1 . . . . . . . . . Ballistic Cannon 1 | . . . . . . . . . . 1 . . Launcher 3 | . . . . . . . . . . 1 . 2 Special Weapon . | . . . . . . . . . . . . . Impact Weapon . | . . . . . . . . . . . . . Slashing Weapon 2 | . . . . . 1 . . . . . 1 . Piercing Weapon 1 | . . . . . . . . . . 1 . . Special Melee Weapon . | . . . . . . . . . . . . . Unidentified Prototypes 2 | . 1 . . . . . . . . 1 . . Corrupted Parts 1 | . . . . . . . . . . 1 . . System Corruption 10 | . . . . . . . . . . 10 . . Parts Lost 11 | . . 5 . . . . . . . . . 6 Power 3 | . . 1 . . . . . . . . . 2 Propulsion 1 | . . 1 . . . . . . . . . . Utility 3 | . . 1 . . . . . . . . . 2 Weapon 4 | . . 2 . . . . . . . . . 2 Highest Loss Streak 5 | . . 5 . . . . . . . . . 4 To Critical Strikes . | . . . . . . . . . . . . . Average Slot Usage (%) 77 | . 94 93 72 85 58 63 63 63 69 66 66 66 Engine 10 | . 14 11 8 14 9 9 9 7 7 7 7 7 Treads 4 | . 7 25 . . . . . . . . . . Leg 4 | . 19 . . . . . . . . . . . Wheel 7 | . . 1 28 28 2 . . . . . . . Flight 3 | . . . . . 7 9 9 7 7 6 7 7 Device 11 | . 8 12 8 14 4 . 8 15 15 20 23 17 Storage 11 | . 14 14 14 14 9 9 9 7 7 7 7 7 Processor 2 | . . . . . 5 9 9 7 7 . . . Hackware 1 | . . . . . . . . 2 7 7 7 7 Energy Gun 4 | . 14 14 5 . . . . . . . . . Energy Cannon 2 | . . . . . . . 8 7 7 4 . . Ballistic Gun 10 | . 14 12 7 14 9 9 9 7 7 4 . . Naked Turns . | . . . . . . . . . . . . . Heaviest Build 58 | 14 32 35 56 58 58 43 48 49 49 50 46 39 Greatest Support 50 | 20 40 40 26 26 50 50 50 50 50 50 50 50 Greatest Overweight (x) 10 | . 1 1 2 2 2 . . . . . . 10 Average Overweight (x) . | . . . . 2 . . . . . . . . Largest Inventory Capacity 20 | . 15 15 20 20 20 15 15 15 15 15 15 15 Average Capacity 15 | . 9 15 15 20 15 15 15 15 15 15 15 15 Most Carried 20 | . 10 15 15 19 20 15 15 15 15 15 15 14 Average Carried 13 | . 7 13 13 17 14 15 14 14 15 13 14 11 Final Capacity 20 | 8 15 15 20 20 15 15 15 15 15 15 15 15 Final Carried 19 | 6 10 13 15 19 15 15 15 15 15 13 14 11 Class Distribution -------------------- 90% | Mutant 7% | Skirmisher Dominant Class ---------------- Mutant | -10/Materials Mutant | -10/Mines Mutant | -10/Exiles Mutant | -9/Mines Mutant | -8/Materials Mutant | -8/Storage Mutant | -8/Garrison Mutant | -7/Factory Skirmisher | -7/Lower Caves Skirmisher | -7/Lower Caves Scavenger-Mutant | -7/Data Miner Mutant | -6/Proximity Caves Resources | -11 -10 -10 -10 -9 -8 -8 -8 -7 -7 -7 -7 -6 ----------- Run | Scr Mat Min Exi Min Mat Sto Gar Fac Low Low Dat Pro Matter Collected 855 | 200 197 58 . 162 79 . 20 . 20 92 . 27 Remotely . | . . . . . . . . . . . . . Salvage Created 2387 | . 374 184 . . 442 310 610 . 124 182 . 161 Parts 155 | . 20 5 . . 22 20 57 . 7 8 . 16 Haulers Intercepted 5 | . 1 . . . 3 1 . . . . . . Recyclers Shooed 1 | . 1 . . . . . . . . . . . Parts Field Recycled . | . . . . . . . . . . . . . Retrieved Matter . | . . . . . . . . . . . . . Parts Self-Destructed 23 | . . . . . . . . . 9 3 . 11 Prevented 6 | . . . . . . . . . 2 1 . 3 Kills | -11 -10 -10 -10 -9 -8 -8 -8 -7 -7 -7 -7 -6 ------- Run | Scr Mat Min Exi Min Mat Sto Gar Fac Low Low Dat Pro Combat Hostiles Destroyed 65 | . 10 5 . . 7 5 24 . 4 4 . 6 Melee 1 | . . . . . . . . . . . . 1 Guns 52 | . 10 5 . . 7 5 23 . 2 . . . Cannons 4 | . . . . . . . 1 . 2 1 . . AOE 8 | . . . . . . . . . . 3 . 5 Classes Destroyed 11 | . 3 1 . . 3 1 1 . 1 1 . . Hauler 5 | . 1 . . . 3 1 . . . . . . Watcher 1 | . . . . . 1 . . . . . . . Swarmer 31 | . 2 . . . 3 . 17 . 3 . . 6 Grunt 22 | . 8 4 . . 2 3 2 . . 3 . . Duelist 1 | . . . . . 1 . . . . . . . Sentry 6 | . . . . . . 2 4 . . . . . Specialist 1 | . . . . . . . 1 . . . . . Hunter 1 | . . . . . 1 . . . . . . . Programmer 1 | . . . . . . . . . 1 . . . Master Thief 1 | . . . . . . . . . . 1 . . Assembled 1 | . . 1 . . . . . . . . . . Best Kill Streak 7 | . 2 2 . . 4 6 7 . 3 2 . 3 Combat Bots Only 6 | . 2 2 . . 3 5 6 . 3 2 . 3 Max Kills in Single Turn 2 | . 1 1 . . 1 1 2 . 1 2 . 2 Gunslinging . | . . . . . . . . . . . . . Exploded 2 | . . . . . . . . . . 2 . 2 Melee 1 | . . . . . . . . . . . . 1 Uniques/NPCs Destroyed . | . . . . . . . . . . . . . Combat | -11 -10 -10 -10 -9 -8 -8 -8 -7 -7 -7 -7 -6 -------- Run | Scr Mat Min Exi Min Mat Sto Gar Fac Low Low Dat Pro Damage Taken 2522 | . 372 464 . . 70 16 257 . 82 95 145 1021 Core 453 | . 79 57 . . 7 . 16 . 14 46 50 184 Absorbed by Shields 23 | . . . . . . . 23 . . . . . Core Remaining (%) 80 | 100 . . . 45 . . 95 . . . . . Volleys Fired 138 | . 39 20 . . . . 41 . 5 24 . 9 Largest 2 | . 2 2 . . . . 1 . 1 1 . 1 Hottest 120 | . 70 95 . . . . 120 . 120 120 . 36 Shots Fired 321 | . 77 38 . . 40 13 108 . 12 24 . 9 Gun 242 | . 77 38 . . 40 13 67 . 7 . . . Cannon 65 | . . . . . . . 41 . 5 19 . . Launcher 14 | . . . . . . . . . . 5 . 9 Special . | . . . . . . . . . . . . . Kinetic 184 | . 39 18 . . 40 13 67 . 7 . . . Thermal 123 | . 38 20 . . . . 41 . 5 19 . . Explosive . | . . . . . . . . . . . . . Electromagnetic 14 | . . . . . . . . . . 5 . 9 Robot Hit Streak 18 | . 9 18 . . 10 11 16 . 6 8 . 2 Robot Miss Streak 5 | . 5 2 . . 4 1 3 . 1 . . 3 Penetration Max . | . . . . . . . . . . . . . Secondary Targets 1 | . 1 . . . . . . . . . . . Max Gunslinging Chain 1 | . 1 . . . . . . . . . . . Autonomous 128 | . . . . . 40 13 67 . 8 . . . Shots Hit Robots 195 | . 50 30 . . 29 13 53 . 10 2 1 7 Core Hits 99 | . 19 12 . . 14 6 26 . 4 8 . 10 Critical Kills 1 | . . . . . . 1 . . . . . . Critical Parts Destroyed 2 | . . . . . . . 1 . 1 . . . Critical Strikes 6 | . 1 2 . . . 1 1 . 1 . . . Burn 3 | . 1 2 . . . . . . . . . . Destroy 3 | . . . . . . 1 1 . 1 . . . Melee Attacks 23 | . . . . . 6 3 . . . . 6 8 Impact . | . . . . . . . . . . . . . Slashing 20 | . . . . . 6 3 . . . . 5 6 Piercing 3 | . . . . . . . . . . . 1 2 Sneak Attacks 5 | . . . . . 3 1 . . . . 1 . Combat Hostiles . | . . . . . . . . . . . . . Follow-up Attacks 1 | . . . . . . . . . . . . 1 Damage Inflicted 6092 | . 708 418 . . 973 461 2173 . 361 458 74 466 Guns 4037 | . 708 408 . . 673 400 1682 . 166 . . . Cannons 894 | . . . . . . . 491 . 195 208 . . Explosions 628 | . . . . . . . . . . 250 . 378 Melee 523 | . . . . . 300 61 . . . . 74 88 Ramming 10 | . . 10 . . . . . . . . . . Kinetic 3510 | . 384 205 . . 673 400 1682 . 166 . . . Thermal 1516 | . 324 203 . . . . 491 . 195 247 . 56 Explosive . | . . . . . . . . . . . . . Electromagnetic 533 | . . . . . . . . . . 211 . 322 Impact . | . . . . . . . . . . . . . Slashing 497 | . . . . . 300 61 . . . . 74 62 Piercing 26 | . . . . . . . . . . . . 26 Highest Corruption 11 | . . 11 11 11 . . . . . 10 10 11 Average Corruption 10 | . . 9 11 11 . . . . . 10 10 10 Corruption Purged . | . . . . . . . . . . . . . Corruption Blocked . | . . . . . . . . . . . . . Effects 45 | . . 1 11 21 . . . . . 5 4 3 Message Errors 11 | . . . 3 6 . . . . . 2 . . Matter Fused 17 | . . . 5 9 . . . . . 2 1 . Heat Flow Errors 6 | . . 1 1 3 . . . . . . 1 . Energy Discharges 4 | . . . 1 2 . . . . . . . 1 Parts Rejected 1 | . . . . . . . . . . . . 1 Data Loss (minor) 2 | . . . 1 . . . . . . . 1 . Data Loss (major) 2 | . . . . . . . . . . 1 1 . Alerts 1 | . . . . 1 . . . . . . . . Misdirections 1 | . . . . . . . . . . . . 1 Overload Shots . | . . . . . . . . . . . . . Overflow Damage 64 | . . . . . 14 . 19 . 23 . . 8 Projectiles 42 | . . . . . . . 19 . 23 . . . Explosions . | . . . . . . . . . . . . . Melee 22 | . . . . . 14 . . . . . . 8 Knockbacks 1 | . . 1 . . . . . . . . . . Impact 1 | . . 1 . . . . . . . . . . Kinetic . | . . . . . . . . . . . . . Secondary . | . . . . . . . . . . . . . Self-Inflicted Damage 116 | . . . . . . . . . . 77 . 39 Shots 7 | . . . . . . . . . . 4 . 3 Rammed 1 | . . 1 . . . . . . . . . . Targets Rammed 1 | . . 1 . . . . . . . . . . Kicked . | . . . . . . . . . . . . . Crushed . | . . . . . . . . . . . . . Highest Temperature 360 | . 138 239 242 160 . . 360 . 67 159 82 . Average Temperature 75 | . 38 57 130 82 . . 117 . 33 78 51 . Received Heat Transfer 432 | . 138 93 . . . 9 36 . . . . 156 Effects 2 | . . . . . . . 2 . . . . . Interference 2 | . . . . . . . 2 . . . . . Siege Activations . | . . . . . . . . . . . . . Robots Corrupted . | . . . . . . . . . . . . . Combat Hostiles . | . . . . . . . . . . . . . Parts Fried 3 | . . . . . . . . . . 3 . . Impact Corruptions . | . . . . . . . . . . . . . Robots Melted . | . . . . . . . . . . . . . Combat Hostiles . | . . . . . . . . . . . . . Parts Melted 7 | . 3 1 . . . . . . 3 . . . Heat Transferred 3689 | . 999 703 . . . . 957 . 400 530 . 100 Parts Sabotaged . | . . . . . . . . . . . . . Parts Stolen 4 | . . . . . . . . . . 4 . . Parts Stripped . | . . . . . . . . . . . . . Power Chain Reactions 3 | . . . . . . . . . . 1 . 2 Missiles Intercepted . | . . . . . . . . . . . . . Alert | -11 -10 -10 -10 -9 -8 -8 -8 -7 -7 -7 -7 -6 ------- Run | Scr Mat Min Exi Min Mat Sto Gar Fac Low Low Dat Pro Peak Influence 925 | . 195 137 . . 303 278 925 511 . . . . Initial 485 | . . 42 . . . 127 200 485 . . . . Average 205 | . 90 110 . . 159 172 654 492 . . . . Maximum Alert Level 3 | . . . . . 1 1 3 2 . . . . Low Security (%) 73 | . 100 100 . 100 63 73 . . . . . . Level 1 6 | . . . . . 36 26 15 . . . . . Level 2 8 | . . . . . . . 28 100 . . . . Level 3 12 | . . . . . . . 55 . . . . . Level 4 . | . . . . . . . . . . . . . Level 5 . | . . . . . . . . . . . . . High Security . | . . . . . . . . . . . . . Max Security . | . . . . . . . . . . . . . Squads Dispatched 3 | . 2 . . . . 1 . . . . . . Investigation 1 | . 1 . . . . . . . . . . . Extermination . | . . . . . . . . . . . . . Reinforcement 2 | . 1 . . . . 1 . . . . . . Assault . | . . . . . . . . . . . . . Garrison . | . . . . . . . . . . . . . Intercept . | . . . . . . . . . . . . . Searches Triggered . | . . . . . . . . . . . . . Construction Impeded . | . . . . . . . . . . . . . Haulers Reinforced . | . . . . . . . . . . . . . Active Scanning Responses . | . . . . . . . . . . . . . Cargo Convoy Interrupts . | . . . . . . . . . . . . . Stealth | -11 -10 -10 -10 -9 -8 -8 -8 -7 -7 -7 -7 -6 --------- Run | Scr Mat Min Exi Min Mat Sto Gar Fac Low Low Dat Pro Distress Signals 3 | . 1 . . . 2 . . . . . . . Communications Jammed . | . . . . . . . . . . . . . Distress Signals . | . . . . . . . . . . . . . Times Spotted 105 | . 17 16 . . 10 4 22 . 5 8 4 19 Peak Tracking Total 18 | . 5 18 . . 5 3 6 . 4 7 4 10 Tactical Retreats 7 | . . 1 . . . . 1 . 1 1 . 3 Traps | -11 -10 -10 -10 -9 -8 -8 -8 -7 -7 -7 -7 -6 ------- Run | Scr Mat Min Exi Min Mat Sto Gar Fac Low Low Dat Pro Traps Triggered 10 | . 3 . . . . 1 6 . . . . . Indirectly . | . . . . . . . . . . . . . Trap Hack Attempts . | . . . . . . . . . . . . . Triggered . | . . . . . . . . . . . . . Disarmed . | . . . . . . . . . . . . . Reprogrammed . | . . . . . . . . . . . . . Reused . | . . . . . . . . . . . . . Traps Extracted . | . . . . . . . . . . . . . Installed . | . . . . . . . . . . . . . Triggered 2 | . . . . . . . . . 2 . . . Machines | -11 -10 -10 -10 -9 -8 -8 -8 -7 -7 -7 -7 -6 ---------- Run | Scr Mat Min Exi Min Mat Sto Gar Fac Low Low Dat Pro Machines Disabled 10 | . . . . . 3 1 5 . . . 1 . Max in Single Turn 1 | . . . . . 1 1 1 . . . 1 . Garrison Relay 2 | . . . . . . . 2 . . . . . Machines Sabotaged . | . . . . . . . . . . . . . Garrisons Compromised . | . . . . . . . . . . . . . Overloaded Fab Kills . | . . . . . . . . . . . . . Hacking | -11 -10 -10 -10 -9 -8 -8 -8 -7 -7 -7 -7 -6 --------- Run | Scr Mat Min Exi Min Mat Sto Gar Fac Low Low Dat Pro Machines Accessed 15 | . 3 . 1 . 4 1 1 1 . . 4 . Terminals 9 | . 3 . . . 4 . 1 1 . . . . Fabricators . | . . . . . . . . . . . . . Repair Stations . | . . . . . . . . . . . . . Recycling Units . | . . . . . . . . . . . . . Scanalyzers . | . . . . . . . . . . . . . Garrison Access 1 | . . . . . . 1 . . . . . . Total Hacks 48 | . 6 . 1 . 8 1 1 2 . . 29 . Successful 40 | . 2 . 1 . 4 1 1 2 . . 29 . Failed 8 | . 4 . . . 4 . . . . . . . Catastrophic . | . . . . . . . . . . . . . Database Lockouts . | . . . . . . . . . . . . . Manual 5 | . 2 . 1 . 2 . . . . . . . Terminals 17 | . 6 . . . 8 . 1 2 . . . . Fabricators . | . . . . . . . . . . . . . Repair Stations . | . . . . . . . . . . . . . Recycling Units . | . . . . . . . . . . . . . Scanalyzers . | . . . . . . . . . . . . . Garrison Access 1 | . . . . . . 1 . . . . . . Terminal Hacks 39 | . 2 . 1 . 4 . 1 2 . . 29 . Record 11 | . . . . . . . . . . . 11 . Part Schematic 10 | . . . . . . . . . . . 10 . Robot Schematic 5 | . . . . . . . . . . . 5 . Robot Analysis 4 | . 1 . . . 2 . . 1 . . . . Prototype ID Bank 3 | . . . . . . . . . . . 3 . Open Door 1 | . . . . . . . 1 . . . . . Level Access Points 1 | . 1 . . . . . . . . . . . Branch Access Points 1 | . . . . . 1 . . . . . . . Recycling Unit Index 1 | . . . . . 1 . . . . . . . Locate Traps 1 | . . . . . . . . 1 . . . . EX-Prototype ID Bank 1 | . . . 1 . . . . . . . . . Fabricator Hacks . | . . . . . . . . . . . . . Repair Station Hacks . | . . . . . . . . . . . . . Recycling Unit Hacks . | . . . . . . . . . . . . . Scanalyzer . | . . . . . . . . . . . . . Garrison Access Hacks 1 | . . . . . . 1 . . . . . . Unlock Access 1 | . . . . . . 1 . . . . . . Unauthorized Hacks . | . . . . . . . . . . . . . Terminals . | . . . . . . . . . . . . . Fabricators . | . . . . . . . . . . . . . Repair Stations . | . . . . . . . . . . . . . Recycling Units . | . . . . . . . . . . . . . Scanalyzers . | . . . . . . . . . . . . . Garrison Access . | . . . . . . . . . . . . . Data Cores Recovered 1 | . . . . . 1 . . . . . . . Used 1 | . . . . . 1 . . . . . . . Hacking Detections 6 | . 2 . . . 3 . . 1 . . . . Full Trace Events . | . . . . . . . . . . . . . Feedback Events . | . . . . . . . . . . . . . Feedback Blocked . | . . . . . . . . . . . . . Robot Schematics Acquired 5 | . . . . . . . . . . . 5 . Robots Built . | . . . . . . . . . . . . . Authchips . | . . . . . . . . . . . . . Time . | . . . . . . . . . . . . . Total Robot Build Rating . | . . . . . . . . . . . . . Part Schematics Acquired 10 | . . . . . . . . . . . 10 . Parts Built . | . . . . . . . . . . . . . Authchips . | . . . . . . . . . . . . . Time . | . . . . . . . . . . . . . Total Part Build Rating . | . . . . . . . . . . . . . Parts Repaired . | . . . . . . . . . . . . . Time . | . . . . . . . . . . . . . Parts Recycled . | . . . . . . . . . . . . . Recycled Matter . | . . . . . . . . . . . . . Retrieved Matter . | . . . . . . . . . . . . . Retrieved Components . | . . . . . . . . . . . . . Parts Scanalyzed . | . . . . . . . . . . . . . Part Schematics Acquired . | . . . . . . . . . . . . . Parts Damaged . | . . . . . . . . . . . . . Bothacking | -11 -10 -10 -10 -9 -8 -8 -8 -7 -7 -7 -7 -6 ------------ Run | Scr Mat Min Exi Min Mat Sto Gar Fac Low Low Dat Pro Used RIF Installer 1 | . . . . . . . 1 . . . . . Robots Hacked . | . . . . . . . . . . . . . Non-combat . | . . . . . . . . . . . . . Combat . | . . . . . . . . . . . . . Robot Hacks Applied . | . . . . . . . . . . . . . Relay Couplers Released 9 | . . . . . . . 9 . . . . . Machine Destruction 9 | . . . . . . . 9 . . . . . Fabnet Peak Effective % . | . . . . . . . . . . . . . Robots Rewired . | . . . . . . . . . . . . . Allies Hacked . | . . . . . . . . . . . . . Hacks Repelled . | . . . . . . . . . . . . . Allies | -11 -10 -10 -10 -9 -8 -8 -8 -7 -7 -7 -7 -6 -------- Run | Scr Mat Min Exi Min Mat Sto Gar Fac Low Low Dat Pro Total Allies 1 | . . 1 . . . . . . . . . . Largest Group 1 | . . 1 . . . . . . . . . . Highest-Rated Group 31 | . . 31 . . . . . . . . . . Highest-Rated Ally 31 | . . 31 . . . . . . . . . . Total Orders . | . . . . . . . . . . . . . Ally Attacks 4 | . . 4 . . . . . . . . . . Total Damage 84 | . . 84 . . . . . . . . . . Kills . | . . . . . . . . . . . . . Allies Corrupted . | . . . . . . . . . . . . . Allies Melted . | . . . . . . . . . . . . . Intel | -11 -10 -10 -10 -9 -8 -8 -8 -7 -7 -7 -7 -6 ------- Run | Scr Mat Min Exi Min Mat Sto Gar Fac Low Low Dat Pro Robot Analysis Total 4 | . 1 . . . 2 . . 1 . . . . Derelict Logs Recovered 2 | . . . . 1 . . . . 1 . . . Drone Launches . | . . . . . . . . . . . . . Drone Recoveries . | . . . . . . . . . . . . . Exploration | -11 -10 -10 -10 -9 -8 -8 -8 -7 -7 -7 -7 -6 ------------- Run | Scr Mat Min Exi Min Mat Sto Gar Fac Low Low Dat Pro Turns Passed 3748 | . 752 365 255 766 235 49 613 54 157 302 73 127 Spaces Moved 3921 | 1 453 195 249 621 366 81 814 100 293 475 108 165 Core 1 | . . . . . . . . . . . . 1 Treads 282 | . 117 165 . . . . . . . . . . Legs 337 | 1 336 . . . . . . . . . . . Wheels 918 | . . 30 249 621 18 . . . . . . . Hover . | . . . . . . . . . . . . . Flight 2383 | . . . . . 348 81 814 100 293 475 108 164 Fastest Speed 50 | 120 120 90 90 120 50 50 50 50 50 50 50 50 Average Speed 79 | 120 130 150 99 120 53 50 50 50 50 50 50 53 Slowest Speed 550 | 120 190 240 120 120 120 50 50 50 50 50 50 550 Overloaded Moves . | . . . . . . . . . . . . . Propulsion Burnouts . | . . . . . . . . . . . . . Robots Hopped 5 | . . . . . 1 . 1 . . 1 . 2 Cave-ins Triggered . | . . . . . . . . . . . . . Exploration Rate (%) 46 | 1 71 38 61 96 29 21 70 4 52 59 76 31 Regions Visited 12 Branch Regions 8 Pre-discovered Areas 1 | . . . . . . . . . . . 1 . Known Exits Taken 2 | . . . . . 1 1 . . . . . . Unknown Exits Taken 9 | 1 1 1 1 1 . . . 1 1 1 1 . Scrap Searched 5 | . . 1 . 2 . . . . . 2 . . Spaces Dug 10 | . . . . . . . 6 . . 3 . 1 Terrain Destroyed 98 | . . . . . 22 10 34 . 6 20 . 6 Melee 1 | . . . . . . . . . . . . 1 Projectile 85 | . . . . . 22 10 34 . 6 13 . . AOE 12 | . . . . . . . . . . 7 . 5 Terrain Rammed . | . . . . . . . . . . . . . Walls Destroyed . | . . . . . . . . . . . . . Machines Disabled . | . . . . . . . . . . . . . Actions | -11 -10 -10 -10 -9 -8 -8 -8 -7 -7 -7 -7 -6 --------- Run | Scr Mat Min Exi Min Mat Sto Gar Fac Low Low Dat Pro Total 4341 | . 539 227 258 641 398 85 978 103 297 512 119 184 Wait 80 | . 29 2 . 15 6 . 15 . . 6 4 3 Move 3899 | . 452 194 248 620 363 80 811 99 292 472 107 161 Hop 5 | . . . . . 1 . 1 . . 1 . 2 Pick Up 27 | . 5 5 2 3 6 1 2 2 . 1 . . Fast Attach 12 | . 3 . 1 . 4 . . . . 4 . . Attach 12 | . . 2 2 . 1 . . 2 . 1 1 3 Detach 6 | . . . 1 . 2 . . . . 1 2 . Swap 13 | . 5 2 1 2 . . 2 . . 1 . . Drop 24 | . 6 1 3 1 9 1 2 . . 1 . . Fire 138 | . 39 20 . . . . 41 . 5 24 . 9 Melee 20 | . . . . . 6 3 . . . . 5 6 Ram . | . . . . . . . . . . . . . Kick . | . . . . . . . . . . . . . Crush 1 | . . 1 . . . . . . . . . . Escape Stasis 104 | . . . . . . . 104 . . . . . Rewire . | . . . . . . . . . . . . . Trap . | . . . . . . . . . . . . . Miscellaneous . | . . . . . . . . . . . . . Route ------- -11/Scrapyard -10/Materials (discovered 4 exits: *Mat x3 / [*Min]) -10/Mines (discovered 3 exits: *Mat x2 / *Exi) -10/Exiles -9/Mines (discovered 2 exits: *Mat x2) -8/Materials -8/Storage -8/Garrison (discovered 3 exits: *Fac x3) -7/Factory -7/Lower Caves -7/Lower Caves (discovered 2 exits: [*Fac] / *Dat) -7/Data Miner -6/Proximity Caves History --------- Turn | Location | Event 1 | -11/Scrapyard | Discovered new exit (range 0) 1 | -11/Scrapyard | Entered Materials 12 | -10/Materials | Identified exit to Materials 294 | -10/Materials | Discovered new exit (range 10) 312 | -10/Materials | Build established: Mutant 753 | -10/Materials | Entered Mines 816 | -10/Mines | Discovered exit to Materials (range 7) 829 | -10/Mines | Received a Mining Laser from a helpful Derelict 915 | -10/Mines | Discovered exit to Materials (range 5) 1041 | -10/Mines | Assembled infested the area 1073 | -10/Mines | Core integrity fell below 50% 1076 | -10/Mines | System corruption reached 10% 1106 | -10/Mines | Lost 5 parts (1p1n1u2w) 1113 | -10/Mines | Deemed a non-threat by the Exiles lab entrance 1114 | -10/Mines | Discovered new exit (range 5) 1118 | -10/Mines | Entered Exiles 1140 | -10/Exiles | Met 8R-AWN 1154 | -10/Exiles | Met EX-HEX 1180 | -10/Exiles | Met EX-BIN 1193 | -10/Exiles | Aligned with FarCom system 1194 | -10/Exiles | Given EX-Vault access code 1218 | -10/Exiles | Opened EX-Vault 1230 | -10/Exiles | Found AWS/Gauss 1237 | -10/Exiles | Found Gui. Plasma Cannon 1241 | -10/Exiles | Found Flying Fortress v7 1263 | -10/Exiles | Warned to stay clear of 0b10 Research branches 1298 | -10/Exiles | Met EX-DEC 1362 | -10/Exiles | Discovered new exit (range 10) 1373 | -10/Exiles | Stole three prototypes: AWS/Gauss, Flying Fortress v7, Gui. Plasma Cannon 1373 | -10/Exiles | Entered Mines 1532 | -9/Mines | Discovered new exit (range 11) 1617 | -9/Mines | Discovered new exit (range 7) 1890 | -9/Mines | Learned Materials terminal intel 2051 | -9/Mines | Found a damaged Exp. Sensor Array with a note attached 2054 | -9/Mines | Found Prototype Device 2139 | -9/Mines | Entered Materials 2139 | -8/Materials | Evolved 4 slots: Propulsion x2, Utility x1, Weapon x1 2140 | -8/Materials | Loaded intel: 12 terminal locations 2205 | -8/Materials | Discovered new exit (range 15) 2350 | -8/Materials | Identified exit to Storage 2374 | -8/Materials | Entered Storage 2421 | -8/Storage | Identified exit to Garrison 2423 | -8/Storage | Entered Garrison 2451 | -8/Garrison | Triggered checkpoint 2477 | -8/Garrison | Garrison Relay disabled 2542 | -8/Garrison | Triggered checkpoint 2557 | -8/Garrison | Triggered checkpoint 2631 | -8/Garrison | Discovered new exit (range 12) 2648 | -8/Garrison | Triggered checkpoint 2765 | -8/Garrison | Discovered new exit (range 10) 2800 | -8/Garrison | Triggered checkpoint 2813 | -8/Garrison | Garrison Relay disabled 2916 | -8/Garrison | Triggered checkpoint 2944 | -8/Garrison | Discovered new exit (range 10) 3027 | -8/Garrison | Installed Relay Interface Framework 3036 | -8/Garrison | Entered Factory 3036 | -7/Factory | Evolved 2 slots: Utility x2 3038 | -7/Factory | FarCom data flow suspended 3079 | -7/Factory | Discovered new exit (range 15) 3090 | -7/Factory | Entered Lower Caves 3099 | -7/Lower Caves | Encountered a Warlord checkpoint 3242 | -7/Lower Caves | Discovered new exit (range 8) 3247 | -7/Lower Caves | Entered another Lower Caves area 3260 | -7/Lower Caves | Discovered new exit (range 4) 3271 | -7/Lower Caves | Identified Exp. Sensor Array 3425 | -7/Lower Caves | Spotted X0-MPB(f) 3427 | -7/Lower Caves | Encountered a Master Thief 3427 | -7/Lower Caves | Spotted LU-5O8(f) 3428 | -7/Lower Caves | Encountered a Master Thief 3428 | -7/Lower Caves | Spotted NZ-16W(f) 3429 | -7/Lower Caves | Encountered a Master Thief 3429 | -7/Lower Caves | Spotted 04-FPU(f) 3430 | -7/Lower Caves | Encountered a Master Thief 3430 | -7/Lower Caves | Spotted 7O-W81(f) 3430 | -7/Lower Caves | Broken AWS/Gauss stolen by Master Thief 3434 | -7/Lower Caves | Gui. Plasma Cannon stolen by Master Thief 3435 | -7/Lower Caves | Encountered a Master Thief 3436 | -7/Lower Caves | Exp. Sensor Array stolen by Master Thief 3437 | -7/Lower Caves | Adv. Assault Cannon stolen by Master Thief 3437 | -7/Lower Caves | Destroyed NZ-16W(f) 3442 | -7/Lower Caves | System corruption reached 10% 3547 | -7/Lower Caves | Discovered new exit (range 4) 3549 | -7/Lower Caves | Entered Data Miner 3549 | -7/Data Miner | Discovered new exit (range 6) 3560 | -7/Data Miner | Met Data Miner 3572 | -7/Data Miner | Learned location of Section 7 (-2) 3572 | -7/Data Miner | Acquired the access code to Warlord's prototype stash 3582 | -7/Data Miner | Received God Mode back door access code from Data Miner 3598 | -7/Data Miner | Data Conduit disabled 3622 | -7/Data Miner | Entered Proximity Caves 3749 | -6/Proximity Caves | Self-destructed Last Messages --------------- 03663_ Corrupted Unknown Ballistic Gun fries itself beyond repair. 03673_ Destroyed VTOL Module. 03675_ Mak. Spear follow-up attack on S-27 Virus. 03675_ S-27 Virus destroyed. 03677_ Acquired 27 matter. 03681_ S-27 Virus IFF system glitched. 03687_ Shock Bomb Launcher destroyed. 03700_ System corrupted: Energy discharge (-64). 03701_ S-27 Virus destroyed. 03707_ Corrupted VTOL Module fries itself beyond repair. 03708_ VTOL Module fries itself beyond repair. 03712_ Corrupted VTOL Module fries itself beyond repair. 03713_ Corrupted Lgt. Nuclear Core self-destruct mechanism malfunctions. 03713_ S-27 Virus destroyed. 03714_ Corrupted VTOL Module fries itself beyond repair. 03714_ Shock Bomb Launcher destroyed. 03718_ S-27 Virus destroyed. 03744_ System corrupted: Flying Fortress v7 rejected. 03744_ Imp. Heat Sink destroyed. 03748_ Imp. Ion Engine destroyed. Map ----- +----------------------------------------------------+ | #??????????## ##?# #???????????????? | | ###????????### ### #???????????????? | | #??????????# #???????????????? | | #??????????## #???????????????? | | #??????????## ######???????????????? | | #??????????# ##????????????????????? | | #???????? ## #?????????????????????? | | #????????? ??## #?????????????????????? | | #????? ????## #?????????????????????? | | #????????????## #?????????????????????? | | #?????????????# # #?????????????????????? | | ???????????# ## #?????????????????????? | | ?????????# ?# #?????????????????????? | | ## ########????????# ?# ##????????????????????? | | ##? #???????????????# ## ##???????????????????? | | #?? #???????????????# ##??????????????????? | | #???#???????????????# ##?????????????????? | | #????????????????######## ##????????????????? | | #??????????????# ##???????????????? | | ?????????????????###### ##??????????????? | | ??????????????????????# s #??????????????? | | ??????????????????????## s #??????????????? | | ?????????????#?????????# s## #??????????????? | | ?????????????## ?????# #?# #??????????????? | | ?????????? ## #?? #??????????????? | | ?????????? @=#?? ##??????????????? | | ?????????????# #### #??? #???????????????? | | ??????????????????????# #??? ##???????????????? | | ??????????????????????## #????#????????????????? | | ???????????????????????# ##?????????????????????? | | ???????????????????????## #??????????????????????? | | ????????????????????????###??????????????????????? | | ?????????????????????????????????????????????????? | | ?????????????????????????????????????????????????? | | ?????????????????????????????????????????????????? | | ?????????????????????????????????????????????????? | | ?????????????????????????????????????????????????? | | ?????????????????????????????????????????????????? | | ?????????????????????????????????????????????????? | | ?????????????????????????????????????????????????? | | ?????????????????????????????????????????????????? | | ?????????????????????????????????????????????????? | | ?????????????????????????????????????????????????? | | ?????????????????????????????????????????????????? | | ?????????????????????????????????????????????????? | | ?????????????????????????????????????????????????? | | ?????????????????????????????????????????????????? | | ?????????????????????????????????????????????????? | | ?????????????????????????????????????????????????? | | ?????????????????????????????????????????????????? | +----------------------------------------------------+ Best States ------------- Heat Dissipation 76 Energy Generation 12 Energy Capacity 265 Matter Stores 300 Matter Capacity 300 Sight Range 16 Robot Scan Range 20 Terrain Scan Density 10 Armor Coverage 150 Resistance: TH 10 Evasion (%) 60 Recoil Reduction 2 Offensive Hacking 10 Item Schematics ----------------- Combat Drone Bay | -7/Data Miner | Free Lgt. Regenerative Plating | -7/Data Miner | Free Cld. Cesium-ion Thruster | -7/Data Miner | Free Gravity Neutralizer | -7/Data Miner | Free Imp. Heavy Laser | -7/Data Miner | Free Nuclear Pulse Array | -7/Data Miner | Free Adv. Field Recycling Unit | -7/Data Miner | Free Hyp. Gauss Cannon | -7/Data Miner | Free Coil Gun | -7/Data Miner | Free Smartbomb Launcher | -7/Data Miner | Free Robot Schematics ------------------ L-41 Fighter | -7/Data Miner | Free G-47 Trooper | -7/Data Miner | Free G-50 Soldier | -7/Data Miner | Free M-22 Extractor | -7/Data Miner | Free B-60 Warrior | -7/Data Miner | Free Fabricated ------------ Nothing Alien Tech Used ----------------- None Achievements -------------- None Challenges ------------ None Game ------ Seed PhysicsIonComputer Manual? 0 Play Time 00:37:03 Cumulative 367.3 hours Start 2022.07.01 @ 14:12:47 End 2022.07.01 @ 15:08:03 Sessions 1 Manual Loads 0 Difficulty Rogue Special Mode None Game No. 441 Rogue 440 Adventurer 0 Explorer 1 Win Type - Total 9 Types 6/0/1/2/0/0/0/0/0 Lore% 73 Gallery% 84 Achievement% 62 Wizard Run 0 Options --------- ASCII 0 Keyboard 1 Movement Vi Keybinds 0 Fullscreen 1 Font 18/SmallcapsGlow Map View 76x50 Tactical HUD 1 Map Filters NONE Filters NONE Steam 1 RUN: 97fd3046-6db9-462c-b73f-0c7cb7eba6fe